bitfinex/quotes_SOLUSD_20250326
["timestamp","ask_amount","ask_price","bid_price","bid_amount"]
[1743020825897,0.03,138.47,138.46,43.45214966]
[1743020826593,0.03,138.47,138.46,62.10179852]
[1743020827501,0.03,138.47,138.46,69.32409852]
[1743020829813,0.03,138.47,138.46,69.46626009]
[1743020829981,0.03,138.47,138.46,213.06821245]
[1743020830375,0.03,138.47,138.46,152.06626009]
[1743020834786,0.03,138.47,138.44,82.6]
[1743020834991,0.03,138.47,138.46,15.25048809]
[1743020836620,0.03,138.47,138.45,22.47298809]
[1743020837423,0.03,138.47,138.44,15.25048809]
[1743020838733,0.03,138.47,138.44,22.47378809]
[1743020839116,0.03,138.47,138.44,15.25048809]
[1743020839635,0.03,138.47,138.44,22.47378809]
[1743020840021,0.03,138.47,138.44,7.2233]
[1743020840214,0.03,138.47,138.45,15.25048809]
[1743020841322,0.03,138.47,138.45,0.28432314]
[1743020841529,0.03,138.48,138.47,35.25048809]
[1743020841907,0.03,138.48,138.45,101.533972]
[1743020842105,0.03,138.48,138.47,15.25048809]
[1743020842528,0.03,138.48,138.47,35.25048809]
[1743020843411,0.03,138.48,138.47,42.47218809]
[1743020847013,0.03,138.48,138.47,61.26399852]
[1743020847932,0.03,138.48,138.47,27.2217]
[1743020848135,0.03,138.48,138.47,42.47218809]
[1743020850216,0.03,138.48,138.47,128.755672]
[1743020850536,0.03,138.48,138.47,144.00616009]
[1743020851331,0.0001,138.5,138.48,19.07613357]
[1743020851534,0.0001,138.5,138.49,34.32662166]
[1743020852028,0.03,138.52,138.51,0.14216157]
[1743020852238,0.03,138.52,138.51,104.39264966]
[1743020852743,0.03,138.52,138.51,89.14216157]
[1743020853039,0.03,138.52,138.51,104.39264966]
[1743020853630,0.03,138.52,138.51,107.94657208]
[1743020854027,0.03,138.52,138.51,89.0]
[1743020854230,0.03,138.52,138.51,104.25048809]
[1743020854428,0.03,138.52,138.51,130.26189852]
[1743020854616,0.03,138.52,138.51,130.40406009]
[1743020855317,0.03,138.52,138.51,134.0720478]
[1743020855918,0.03,138.53,138.52,20.65403357]
[1743020856120,0.03,138.53,138.52,96.90647402]
[1743020856321,0.03,138.53,138.52,35.90452166]
[1743020856936,0.03,138.53,138.52,35.76236009]
[1743020857733,0.03,138.53,138.52,42.98146009]
[1743020858430,0.03,138.53,138.52,125.58146009]
[1743020862731,0.03,138.53,138.52,82.74216157]
[1743020863137,0.03,138.53,138.52,97.99264966]
[1743020863529,0.03,138.53,138.52,105.21174966]
[1743020863729,0.03,138.53,138.52,97.99264966]
[1743020865052,0.03,138.53,138.52,105.21174966]
[1743020866857,0.03,138.53,138.52,89.96126157]
[1743020867152,15.28048809,138.53,138.49,89.8206]
[1743020867947,15.28048809,138.53,138.49,105.07108809]
[1743020868453,0.03,138.53,138.49,105.07108809]
[1743020868651,0.03,138.53,138.52,54.04229852]
[1743020869435,0.03,138.53,138.52,38.79181043]
[1743020869637,0.03,138.53,138.52,54.04229852]
[1743020870077,0.03,138.53,138.52,61.26139852]
[1743020870351,0.03,138.53,138.52,27.36126157]
[1743020870934,0.03,138.53,138.52,42.61174966]
[1743020873442,0.03,138.53,138.52,27.36126157]
[1743020873649,0.03,138.53,138.52,42.61174966]
[1743020874664,0.03,138.53,138.52,61.40356009]
[1743020875045,0.03,138.53,138.52,42.61174966]
[1743020875758,0.03,138.53,138.51,7.2195]
[1743020876655,0.03,138.53,138.5,105.07038809]
[1743020876963,0.03,138.53,138.51,15.25048809]
[1743020877157,0.03,138.53,138.5,105.07038809]
[1743020877464,0.03,138.53,138.5,89.8199]
[1743020878069,0.03,138.53,138.51,15.25048809]
[1743020879051,0.03,138.53,138.5,105.07038809]
[1743020879567,0.03,138.53,138.52,15.25048809]
[1743020880059,0.03,138.53,138.51,15.25048809]
[1743020880264,0.03,138.53,138.52,15.39264966]
[1743020880454,0.03,138.53,138.52,34.18446009]
[1743020881259,0.03,138.53,138.52,41.40356009]
[1743020882069,0.0001,138.53,138.52,124.00356009]
[1743020884445,0.03,138.55,138.54,20.14216157]
[1743020884646,0.03,138.55,138.54,20.0]
[1743020884847,15.28048809,138.55,138.52,108.00916157]
[1743020885153,15.28048809,138.55,138.52,89.8191]
[1743020885743,0.03,138.55,138.52,89.8191]
[1743020886161,0.03,138.55,138.52,107.867]
[1743020886363,15.28048809,138.55,138.52,107.867]
[1743020887748,15.25048809,138.53,138.52,7.2191]
[1743020887947,0.03,138.55,138.52,7.2191]
[1743020888163,15.28048809,138.55,138.52,7.2191]
[1743020888348,15.25048809,138.54,138.52,7.2191]
[1743020889571,0.03,138.55,138.52,7.2191]
[1743020889756,15.28048809,138.55,138.51,22.47008809]
[1743020890253,0.03,138.55,138.51,40.51928809]
[1743020890453,0.03,138.55,138.52,15.25048809]
[1743020891054,0.03,138.55,138.51,25.2688]
[1743020891257,0.03,138.55,138.51,40.51928809]
[1743020891459,0.03,138.55,138.52,15.25048809]
[1743020892656,0.03,138.55,138.51,40.51928809]
[1743020893153,0.03,138.55,138.51,7.2196]
[1743020893359,15.28048809,138.55,138.51,7.2196]
[1743020894469,0.03,138.55,138.51,22.47008809]
[1743020894668,0.03,138.55,138.53,0.14216157]
[1743020894872,0.03,138.55,138.54,35.25048809]
[1743020895164,0.03,138.55,138.54,35.39264966]
[1743020896982,0.03,138.55,138.54,42.61074966]
[1743020900673,0.03,138.55,138.54,61.40256009]
[1743020901868,0.03,138.55,138.54,42.61074966]
[1743020907586,0.03,138.55,138.53,89.8814]
[1743020907772,0.03,138.55,138.53,82.663]
[1743020908081,0.03,138.55,138.53,89.8815]
[1743020908879,0.03,138.55,138.53,82.663]
[1743020909379,15.28048809,138.55,138.53,0.063]
[1743020909885,15.25048809,138.54,138.53,0.063]
[1743020910186,15.28048809,138.55,138.53,0.063]
[1743020911382,15.25048809,138.54,138.53,0.063]
[1743020912562,22.46858809,138.54,138.53,0.063]
[1743020912764,15.25048809,138.54,138.53,0.063]
[1743020913369,22.46858809,138.54,138.53,0.063]
[1743020918389,22.49858809,138.54,138.53,0.063]
[1743020922269,83.50054045,138.54,138.53,0.063]
[1743020930592,101.54584045,138.54,138.5,0.063]
[1743020930786,15.25048809,138.51,138.5,0.063]
[1743020932599,22.47008809,138.51,138.5,0.063]
[1743020937519,143.00195236,138.53,138.5,0.063]
[1743020937703,15.25048809,138.51,138.5,0.063]
[1743020938705,22.47008809,138.51,138.5,0.063]
[1743020956808,59.31109852,138.51,138.47,0.063]
[1743020957014,15.25048809,138.48,138.47,0.063]
[1743020958734,22.47168809,138.48,138.47,0.063]
[1743020961320,7.2207,138.49,138.47,0.063]
[1743020961628,15.25048809,138.48,138.47,0.063]
[1743020962332,22.47168809,138.48,138.47,0.063]
[1743020975318,83.47364045,138.48,138.47,0.0001]
[1743020975536,101.52674045,138.48,138.44,0.063]
[1743020975738,15.25048809,138.45,138.44,0.063]
[1743020977046,22.47328809,138.45,138.44,0.063]
[1743020987430,104.47328809,138.45,138.44,0.063]
[1743020989356,82.0,138.44,138.39,0.063]
[1743020989558,15.25048809,138.4,138.39,0.063]
[1743020990953,22.47588809,138.4,138.39,0.063]
[1743021001365,15.25048809,138.4,138.39,0.063]
[1743021001565,89.225,138.41,138.39,0.063]
[1743021001864,82.0,138.41,138.39,0.063]
[1743021002047,0.3473064,138.45,138.4,6.4472]
[1743021002248,0.3473064,138.45,138.4,23.20308809]
[1743021002446,15.59779449,138.45,138.4,23.20308809]
[1743021002971,15.25048809,138.44,138.4,23.20308809]
[1743021003666,7.5702064,138.45,138.4,23.20308809]
[1743021003969,15.25048809,138.44,138.4,23.20308809]
[1743021004173,22.47378809,138.44,138.4,15.1779]
[1743021004969,15.25048809,138.43,138.4,7.9526]
[1743021005163,15.25048809,138.41,138.4,1.5054]
[1743021005849,15.25048809,138.41,138.39,0.063]
[1743021006049,82.3473064,138.45,138.39,0.063]
[1743021006050,22.47588809,138.4,138.39,0.063]
[1743021007173,83.47784045,138.4,138.39,0.063]
[1743021007470,22.47588809,138.4,138.39,0.063]
[1743021009976,83.47784045,138.4,138.39,0.063]
[1743021010282,108.64965088,138.4,138.38,0.063]
[1743021010481,76.25244045,138.39,138.38,0.063]
[1743021010662,83.47834045,138.39,138.38,0.063]
[1743021012353,68.22785236,138.39,138.38,0.063]
[1743021012557,22.47638809,138.39,138.38,0.063]
[1743021012754,7.2254,138.4,138.38,0.063]
[1743021013077,15.25048809,138.39,138.38,0.063]
[1743021013258,76.25244045,138.39,138.38,0.063]
[1743021013455,76.39460202,138.39,138.37,0.063]
[1743021013652,20.0,138.34,138.33,0.063]
[1743021013859,35.25048809,138.34,138.33,0.063]
[1743021014267,15.25048809,138.34,138.33,0.063]
[1743021017978,22.47898809,138.34,138.33,0.063]
[1743021019661,18.64964886,138.33,138.31,0.063]
[1743021019862,76.25244045,138.32,138.31,0.063]
[1743021020580,15.25048809,138.32,138.31,0.063]
[1743021021369,22.48008809,138.32,138.31,0.063]
[1743021023866,15.25048809,138.32,138.31,0.063]
[1743021024184,15.25048809,138.33,138.31,0.063]
[1743021024566,15.25048809,138.32,138.31,0.063]
[1743021026185,22.48008809,138.32,138.31,0.063]
[1743021026966,83.48204045,138.32,138.31,0.063]
[1743021027471,22.48008809,138.32,138.31,0.063]
[1743021028658,15.25048809,138.32,138.31,0.063]
[1743021032889,22.47978809,138.33,138.31,0.063]
[1743021033590,15.25048809,138.32,138.31,0.063]
[1743021035387,22.48008809,138.32,138.31,0.063]
[1743021039078,83.48204045,138.32,138.31,0.063]
[1743021039292,22.48008809,138.32,138.31,0.063]
[1743021056999,89.2292,138.33,138.31,0.063]
[1743021057185,82.0,138.33,138.31,0.063]
[1743021057390,82.0,138.33,138.32,1.5452]
[1743021060210,0.063,138.34,138.32,8.7747]
[1743021060408,0.063,138.34,138.33,15.25048809]
[1743021061110,0.063,138.34,138.32,24.02518809]
[1743021061319,0.063,138.34,138.33,15.25048809]
[1743021061608,0.063,138.35,138.34,0.14216157]
[1743021061910,0.063,138.35,138.34,1.6609]
[1743021062285,0.063,138.35,138.34,16.91138809]
[1743021063112,0.063,138.35,138.34,1.6609]
[1743021063689,0.063,138.35,138.31,1.5697]
[1743021063690,15.31348809,138.35,138.31,1.5697]
[1743021063894,15.25048809,138.34,138.31,1.5697]
[1743021064906,0.063,138.35,138.31,1.5697]
[1743021064907,23.82727572,138.33,138.31,1.5697]
[1743021066912,23.82727572,138.34,138.31,8.7997]
[1743021068985,23.82727572,138.34,138.31,1.5697]
[1743021070416,23.82727572,138.34,138.31,8.7997]
[1743021071230,0.063,138.35,138.33,23.82727572]
[1743021071390,0.063,138.35,138.34,23.82727572]
[1743021071598,0.063,138.35,138.34,25.40677572]
[1743021072395,82.0,138.41,138.34,32.01009886]
[1743021072396,23.82727572,138.41,138.34,32.01009886]
[1743021072601,23.82727572,138.43,138.38,23.82727572]
[1743021072806,0.3473064,138.45,138.4,23.82727572]
[1743021073013,24.17458212,138.45,138.4,30.17827572]
[1743021073209,24.17458212,138.45,138.4,37.40367572]
[1743021073410,23.82727572,138.44,138.4,6.351]
[1743021074099,7.5701064,138.45,138.38,23.82727572]
[1743021074100,23.82727572,138.42,138.38,23.82727572]
[1743021074298,7.5701064,138.45,138.37,1.5376]
[1743021074299,23.82727572,138.39,138.37,1.5376]
[1743021074506,23.82727572,138.38,138.34,1.5737]
[1743021075006,23.82727572,138.39,138.34,8.8021]
[1743021075320,23.82727572,138.41,138.37,23.82727572]
[1743021076128,23.82727572,138.41,138.36,23.96943729]
[1743021077212,23.82727572,138.4,138.36,23.82727572]
[1743021077413,23.82727572,138.38,138.34,84.1737]
[1743021077620,23.82727572,138.37,138.34,1.5737]
[1743021078105,23.82727572,138.38,138.34,1.5737]
[1743021079426,31.05387572,138.38,138.34,1.5737]
[1743021079809,23.82727572,138.38,138.34,25.40097572]
[1743021080003,31.05337572,138.39,138.34,25.40097572]
[1743021080205,31.05277572,138.4,138.35,23.82727572]
[1743021080405,23.82727572,138.4,138.35,23.82727572]
[1743021080704,23.82727572,138.38,138.34,108.00097572]
[1743021080915,23.82727572,138.38,138.34,84.1737]
[1743021081814,31.05377572,138.38,138.34,84.1737]
[1743021082238,23.82727572,138.38,138.34,84.1737]
[1743021082519,23.82727572,138.38,138.34,115.22947572]
[1743021082728,23.82727572,138.38,138.34,108.00097572]
[1743021084005,23.82727572,138.38,138.34,84.1737]
[1743021084206,23.82727572,138.38,138.34,1.5737]
[1743021084728,23.82727572,138.38,138.34,8.8022]
[1743021085329,23.82727572,138.38,138.34,8.8652]
[1743021085628,23.82727572,138.38,138.34,32.69247572]
[1743021086931,15.23806616,138.38,138.34,24.10326616]
[1743021088220,15.23806616,138.39,138.34,24.10326616]
[1743021088523,15.23806616,138.4,138.35,15.38022773]
[1743021088728,15.23806616,138.4,138.36,15.23806616]
[1743021089507,15.23806616,138.38,138.34,1.6367]
[1743021089714,15.23806616,138.36,138.34,1.6367]
[1743021090522,15.23806616,138.36,138.34,8.8651]
[1743021091435,15.23806616,138.37,138.34,8.8651]
[1743021091617,15.23806616,138.38,138.34,8.8651]
[1743021091816,89.255,138.41,138.34,24.10316616]
[1743021092123,15.23806616,138.39,138.34,42.17456616]
[1743021093037,23.80824253,138.39,138.34,50.74474253]
[1743021095716,89.255,138.41,138.35,23.9504041]
[1743021095717,23.80824253,138.4,138.35,23.9504041]
[1743021097538,23.80824253,138.4,138.36,7.2275]
[1743021098638,23.80824253,138.39,138.36,7.2275]
[1743021099444,23.80824253,138.38,138.35,7.228]
[1743021099735,23.80824253,138.37,138.34,91.465]
[1743021099940,23.80824253,138.38,138.34,91.465]
[1743021103645,23.80824253,138.37,138.34,1.6367]
[1743021104455,23.80824253,138.37,138.34,8.8651]
[1743021106223,23.80824253,138.39,138.34,32.67334253]
[1743021106941,0.03,138.4,138.36,23.80824253]
[1743021107445,23.83824253,138.4,138.35,23.9504041]
[1743021108650,0.03,138.4,138.36,31.03574253]
[1743021109150,0.03,138.4,138.36,49.10454253]
[1743021110434,0.03,138.4,138.37,23.80824253]
[1743021110630,0.03,138.4,138.38,7.2264]
[1743021110961,0.03,138.4,138.38,31.03464253]
[1743021114155,0.03,138.4,138.39,31.1763041]
[1743021114339,0.03,138.4,138.39,51.61641453]
[1743021114656,0.03,138.4,138.39,134.21641453]
[1743021114858,0.03,138.4,138.39,125.628484]
[1743021116245,0.03,138.41,138.4,0.14216157]
[1743021116556,0.03,138.41,138.4,97.96247357]
[1743021116761,0.3473064,138.45,138.43,15.36247357]
[1743021117663,0.3473064,138.45,138.44,22.58577357]
[1743021117951,0.3473064,138.45,138.44,24.13817357]
[1743021121663,0.3473064,138.45,138.44,8.91786157]
[1743021123379,15.5676184,138.45,138.42,82.6]
[1743021124066,15.220312,138.44,138.42,82.6]
[1743021124866,15.5676184,138.45,138.42,82.6]
[1743021125043,15.220312,138.44,138.42,82.6]
[1743021125238,15.220312,138.43,138.4,1.5893]
[1743021125444,15.220312,138.43,138.39,93.94547745]
[1743021125645,15.220312,138.42,138.39,93.80331588]
[1743021125846,15.220312,138.42,138.39,82.6]
[1743021126461,15.220312,138.42,138.39,89.8258]
[1743021126861,15.220312,138.42,138.39,82.6]
[1743021127061,15.220312,138.42,138.39,89.8259]
[1743021128168,15.220312,138.43,138.39,105.046212]
[1743021128574,15.220312,138.43,138.39,89.8259]
[1743021129075,15.220312,138.42,138.39,82.6]
[1743021129277,15.220312,138.41,138.39,82.6]
[1743021130152,15.220312,138.41,138.39,89.8259]
[1743021130980,15.220312,138.41,138.39,7.2259]
[1743021131158,15.220312,138.41,138.38,7.36836157]
[1743021133375,15.220312,138.41,138.38,7.43136157]
[1743021133680,15.220312,138.41,138.38,0.063]
[1743021133856,15.220312,138.39,138.38,0.063]
[1743021134563,15.220312,138.4,138.38,0.063]
[1743021134979,15.220312,138.4,138.38,7.2894]
[1743021135192,15.220312,138.41,138.38,0.063]
[1743021136673,7.224,138.43,138.38,0.063]
[1743021136866,15.220312,138.4,138.38,0.063]
[1743021138377,15.220312,138.41,138.38,0.063]
[1743021139863,15.220312,138.42,138.38,0.20516157]
[1743021140562,0.3473064,138.45,138.39,15.36247357]
[1743021140771,15.220312,138.43,138.39,0.14216157]
[1743021141172,15.220312,138.4,138.38,0.063]
[1743021141372,15.220312,138.39,138.38,0.063]
[1743021149404,15.220312,138.4,138.38,0.063]
[1743021150807,7.2249,138.41,138.38,0.063]
[1743021150808,15.220312,138.39,138.38,0.063]
[1743021151990,15.220312,138.4,138.38,0.063]
[1743021152673,15.220312,138.42,138.38,0.063]
[1743021153198,15.220312,138.41,138.38,0.063]
[1743021153885,15.220312,138.4,138.38,0.063]
[1743021154375,15.220312,138.39,138.38,0.063]
[1743021159294,15.220312,138.4,138.38,0.063]
[1743021159489,15.220312,138.39,138.38,0.063]
[1743021159688,15.220312,138.4,138.38,0.063]
[1743021162474,0.03,138.41,138.39,15.220312]
[1743021163194,0.03,138.41,138.4,15.220312]
[1743021163701,0.03,138.41,138.4,7.2254]
[1743021164089,0.03,138.41,138.4,7.36756157]
[1743021164685,0.03,138.41,138.4,105.33003514]
[1743021164898,0.03,138.41,138.4,123.979684]
[1743021165505,0.0001,138.41,138.4,124.12184557]
[1743021166785,0.0001,138.41,138.4,123.979684]
[1743021169207,0.3473064,138.45,138.41,0.14216157]
[1743021169398,0.3473064,138.45,138.42,21.72247357]
[1743021169797,0.3473064,138.45,138.44,15.36247357]
[1743021171407,0.063,138.47,138.45,0.14216157]
[1743021171603,0.063,138.47,138.46,15.36247357]
[1743021172108,0.063,138.47,138.46,15.50463514]
[1743021173890,0.063,138.47,138.46,22.72693514]
[1743021174710,0.063,138.47,138.46,124.11874557]
[1743021175216,0.063,138.47,138.46,184.99999357]
[1743021176197,0.063,138.47,138.46,124.11874557]
[1743021176606,0.063,138.49,138.48,20.14216157]
[1743021176800,0.063,138.49,138.48,20.0]
[1743021178614,0.063,138.49,138.48,27.36336157]
[1743021179020,0.063,138.49,138.48,42.58367357]
[1743021179316,0.063,138.49,138.48,42.72583514]
[1743021180909,0.063,138.49,138.48,131.16926375]
[1743021182115,0.063,138.49,138.48,82.6]
[1743021182315,15.283312,138.49,138.48,82.6]
[1743021182817,22.504012,138.49,138.48,82.6]
[1743021183003,22.504012,138.49,138.43,82.6]
[1743021183203,15.220312,138.45,138.42,18.53825582]
[1743021183403,15.220312,138.45,138.42,7.224]
[1743021183814,15.220312,138.46,138.42,7.224]
[1743021184015,15.220312,138.45,138.42,7.224]
[1743021184416,7.2214,138.48,138.42,7.224]
[1743021184624,15.220312,138.46,138.42,22.444312]
[1743021185023,23.78111967,138.48,138.45,0.14216157]
[1743021185208,23.84411967,138.49,138.45,0.14216157]
[1743021185723,23.78111967,138.48,138.45,0.14216157]
[1743021186223,23.78111967,138.48,138.46,7.2223]
[1743021186412,23.84411967,138.49,138.45,7.36466157]
[1743021186617,23.78111967,138.47,138.44,82.6]
[1743021186818,23.78111967,138.46,138.44,82.6]
[1743021187019,23.78111967,138.46,138.44,89.8232]
[1743021187224,23.78111967,138.47,138.44,89.8232]
[1743021187610,23.78111967,138.48,138.45,0.14216157]
[1743021187817,23.84411967,138.49,138.45,0.14216157]
[1743021188019,23.78111967,138.48,138.45,0.14216157]
[1743021188217,23.78111967,138.48,138.45,7.36456157]
[1743021188616,23.84411967,138.49,138.45,7.36456157]
[1743021189235,23.78111967,138.48,138.45,7.36456157]
[1743021189436,0.063,138.49,138.46,23.78111967]
[1743021190021,0.063,138.49,138.47,24.06544281]
[1743021190212,0.063,138.49,138.48,43.92328124]
[1743021190417,0.063,138.49,138.48,126.52328124]
[1743021191318,0.063,138.49,138.48,133.74448124]
[1743021191716,0.063,138.49,138.48,152.53629167]
[1743021192535,0.063,138.49,138.48,158.74789167]
[1743021193322,0.063,138.49,138.48,158.89005324]
[1743021193515,0.063,138.49,138.48,160.52215324]
[1743021193838,0.063,138.49,138.48,160.37999167]
[1743021194030,0.063,138.49,138.48,154.16839167]
[1743021195151,23.81111967,138.55,138.5,0.14216157]
[1743021195322,23.81111967,138.55,138.52,7.2191]
[1743021197329,0.03,138.55,138.52,7.2191]
[1743021198018,23.81111967,138.55,138.52,7.2191]
[1743021198749,23.81111967,138.55,138.53,0.14216157]
[1743021199062,0.03,138.55,138.53,0.14216157]
[1743021199447,0.03,138.55,138.53,7.36046157]
[1743021200541,23.78111967,138.54,138.52,82.6]
[1743021200729,23.78111967,138.53,138.52,82.6]
[1743021200927,23.78111967,138.54,138.52,82.6]
[1743021201235,0.03,138.55,138.53,7.2186]
[1743021201850,23.78111967,138.54,138.52,82.6]
[1743021202930,23.81111967,138.55,138.52,89.8189]
[1743021203135,0.03,138.55,138.53,0.14216157]
[1743021203546,0.03,138.55,138.53,7.36036157]
[1743021204043,23.81111967,138.55,138.53,7.36036157]
[1743021204233,23.81111967,138.55,138.52,89.8189]
[1743021204751,23.78111967,138.54,138.52,89.8189]
[1743021206625,23.78111967,138.54,138.52,82.6]
[1743021206827,23.78111967,138.53,138.48,89.96316157]
[1743021207045,23.78111967,138.53,138.5,0.063]
[1743021208142,23.78111967,138.51,138.5,0.063]
[1743021209251,31.00071967,138.51,138.5,0.063]
[1743021209723,23.78111967,138.51,138.5,0.063]
[1743021213944,7.2182,138.54,138.5,0.063]
[1743021214159,23.78111967,138.51,138.5,0.063]
[1743021214830,23.78111967,138.52,138.5,0.063]
[1743021215240,23.78111967,138.53,138.5,0.063]
[1743021216955,23.78111967,138.53,138.5,7.2832]
[1743021217137,23.78111967,138.53,138.51,0.14216157]
[1743021217337,23.81111967,138.55,138.51,0.28432314]
[1743021217538,0.03,138.55,138.51,106.66544281]
[1743021217958,23.81111967,138.55,138.51,82.88432314]
[1743021218347,23.78111967,138.52,138.51,82.74216157]
[1743021218544,23.78111967,138.52,138.51,82.6]
[1743021218856,23.78111967,138.52,138.5,0.063]
[1743021219061,23.78111967,138.51,138.5,0.063]
[1743021221749,23.78111967,138.52,138.5,0.063]
[1743021221949,23.78111967,138.51,138.5,0.063]
[1743021222851,23.55187137,138.51,138.5,0.063]
[1743021224744,30.77147137,138.51,138.5,0.063]
[1743021225941,23.55187137,138.51,138.5,0.063]
[1743021229867,30.77147137,138.51,138.5,0.063]
[1743021233573,23.55187137,138.51,138.5,0.063]
[1743021235149,23.78111967,138.53,138.5,0.063]
[1743021235366,23.78111967,138.53,138.5,0.20516157]
[1743021236055,23.78111967,138.54,138.5,0.20516157]
[1743021236670,23.78111967,138.54,138.5,6.41746157]
[1743021236881,23.78111967,138.54,138.51,7.2196]
[1743021237392,23.81111967,138.55,138.52,0.14216157]
[1743021237674,0.03,138.55,138.52,0.28432314]
[1743021238555,23.78111967,138.53,138.51,7.2196]
[1743021239361,23.78111967,138.53,138.5,96.0952]
[1743021240472,23.78111967,138.53,138.5,89.8829]
[1743021240677,23.78111967,138.52,138.5,7.2831]
[1743021241890,23.78111967,138.51,138.5,0.063]
[1743021242261,23.78111967,138.53,138.5,0.063]
[1743021243782,23.81111967,138.53,138.5,0.063]
[1743021244858,23.81111967,138.53,138.5,0.20516157]
[1743021245064,0.03,138.53,138.5,113.06844281]
[1743021245287,0.03,138.53,138.5,89.28732314]
[1743021245868,23.81111967,138.53,138.5,89.28732314]
[1743021246573,23.81111967,138.53,138.51,7.2196]
[1743021247812,0.03,138.53,138.52,0.14216157]
[1743021248091,0.03,138.53,138.52,0.28432314]
[1743021248292,0.03,138.53,138.52,106.66544281]
[1743021248465,0.03,138.55,138.54,27.36026157]
[1743021248665,0.03,138.55,138.54,51.14138124]
[1743021248871,0.03,138.55,138.54,69.93319167]
[1743021249071,0.03,138.55,138.54,152.53319167]
[1743021249789,0.03,138.58,138.57,0.14216157]
[1743021250086,0.03,138.58,138.57,106.52328124]
[1743021250278,0.03,138.58,138.57,82.74216157]
[1743021250584,0.03,138.58,138.57,113.88194281]
[1743021250977,0.03,138.58,138.57,90.10082314]
[1743021251992,0.03,138.58,138.57,82.88432314]
[1743021252483,0.03,138.58,138.57,90.10082314]
[1743021252798,0.03,138.58,138.57,82.74216157]
[1743021253381,0.03,138.58,138.57,82.6]
[1743021257871,0.03,138.59,138.58,82.85432314]
[1743021258071,0.03,138.63,138.61,20.0]
[1743021258287,0.03,138.63,138.61,132.81111967]
[1743021258474,0.03,138.63,138.61,109.03]
[1743021259402,0.03,138.63,138.61,89.03]
[1743021259578,23.81111967,138.63,138.61,6.46]
[1743021260791,23.78111967,138.62,138.58,7.35796157]
[1743021260999,23.78111967,138.6,138.58,7.35796157]
[1743021261174,0.03,138.63,138.58,7.35796157]
[1743021261372,23.78111967,138.61,138.58,7.35796157]
[1743021262977,23.78111967,138.62,138.58,7.35796157]
[1743021263499,23.81111967,138.63,138.58,31.13908124]
[1743021264503,23.81111967,138.63,138.58,49.17918124]
[1743021265597,23.81111967,138.63,138.6,23.78111967]
[1743021265598,0.03,138.63,138.6,23.78111967]
[1743021265978,0.03,138.63,138.6,106.35111967]
[1743021266674,0.03,138.63,138.61,7.2144]
[1743021267893,0.03,138.63,138.61,30.99551967]
[1743021268606,0.03,138.63,138.62,23.78111967]
[1743021268803,0.03,138.63,138.62,30.99501967]
[1743021269191,0.03,138.67,138.63,18.933972]
[1743021269402,0.03,138.67,138.66,0.14216157]
[1743021269718,0.03,138.67,138.66,106.52328124]
[1743021270208,0.03,138.67,138.66,82.6]
[1743021272309,0.03,138.67,138.66,113.59291967]
[1743021272604,0.03,138.67,138.66,82.6]
[1743021273405,23.81111967,138.69,138.66,82.6]
[1743021273406,0.03,138.69,138.66,49.92689167]
[1743021273599,0.03,138.69,138.68,23.78111967]
[1743021273792,0.03,138.69,138.67,32.04934281]
[1743021273989,0.03,138.69,138.67,8.26822314]
[1743021274184,0.03,138.69,138.67,8.12606157]
[1743021274402,0.03,138.69,138.68,23.92328124]
[1743021274794,0.03,138.69,138.68,24.06544281]
[1743021275511,0.03,138.69,138.68,31.27624281]
[1743021275696,0.03,138.69,138.68,49.92589167]
[1743021276493,0.03,138.69,138.68,31.27624281]
[1743021277204,0.03,138.69,138.68,7.49512314]